[Event "Czech Youth U14 Boys 2024"]
[Site "Kouty nad Desnou"]
[Date "2024.03.12"]
[Round "5.5"]
[White "Roubal, Matyas"]
[Black "Krivka, Matej"]
[Result "0-1"]
[ECO "B56"]
[WhiteElo "1849"]
[BlackElo "1850"]
[Annotator "NA RC"]
[PlyCount "96"]
[EventDate "2024.03.10"]
[EventType "swiss"]
[EventCountry "CZE"]
[SourceTitle "playchess.com"]
[Source "ChessBase"]
[SourceQuality "1"]
[TimeControl "40/5400+30:1800+30"]

1. e4 {[%emt 0:00:03]} c5 {[%emt 0:00:07]} 2. Nf3 {[%emt 0:00:09]} d6 {[%emt 0:00:10]} 3. d4 {[%emt 0:00:08]} cxd4 {[%emt 0:00:07]} 4. Nxd4 {[%emt 0:00:03]} Nf6 {[%emt 0:00:09]} 5. Nc3 {[%emt 0:00:03]} Nc6 {[%emt 0:00:17]} 6. f3 {[%emt 0:00:07]} e5 {[%emt 0:00:34]} 7. Nb3 {[%emt 0:00:04]} Be7 {[%emt 0:00:32]} 8. Be3 {[%emt 0:00:08]} O-O {[%emt 0:00:32]} 9. Qd2 {[%emt 0:09:00]} a5 {[%emt 0:00:33]} 10. Bb5 {[%emt 0:16:02]} Be6 {[%emt 0:02:45]} 11. Nd5 {[%emt 0:01:10] B56: Classical Sicilian: Unusual Lines.} Bxd5 {[%emt 0:07:24]} 12. exd5 {[%emt 0:00:32]} Nb8 {[%emt 0:01:08]} 13. Be2 {[%emt 0:11:05]} (13. a4 $14) 13... Nbd7 {[%emt 0:03:25]} (13... a4 $142 14. Nc1 Nbd7) 14. c4 {[%emt 0:02:24]} (14. a4 $14 {bleibt weiter vorne.}) 14... b6 {[%emt 0:05:07]} (14... a4 $15 15. Nc1 b5) 15. O-O {[%emt 0:06:37]} Nc5 {[%emt 0:04:06]} 16. Nxc5 {[%emt 0:03:01]} bxc5 {[%emt 0:00:43]} 17. b3 {[%emt 0:01:39]} Nd7 {[%emt 0:05:58]} 18. f4 {[%emt 0:06:09]} f5 {[%emt 0:08:41]} 19. Qc2 {[%emt 0:04:24]} (19. Rae1 $11) 19... e4 {[%emt 0:05:52]} 20. Bd2 {[%emt 0:02:09]} Bf6 {[%emt 0:00:45]} 21. Bc3 {[%emt 0:00:19]} (21. Rab1 $142) 21... Bd4+ {[%emt 0:01:02]} 22. Kh1 {[%emt 0:00:07]} Qh4 {[%emt 0:03:00]} 23. Qb2 {[%emt 0:03:25]} Qf6 {[%emt 0:10:33]} 24. Rac1 {[%emt 0:00:45]} a4 {[%emt 0:02:29]} 25. Rfd1 {[%emt 0:03:12]} axb3 {[%emt 0:02:19]} 26. axb3 {[%emt 0:00:50]} Bxc3 {[%emt 0:00:07]} 27. Rxc3 {[%emt 0:01:31]} Rfb8 {[%emt 0:01:04]} 28. Rc2 {[%emt 0:04:16]} Qxb2 {[%emt 0:01:09]} 29. Rxb2 {[%emt 0:00:04]} Rb4 {[%emt 0:00:44]} 30. Rc1 {[%emt 0:01:48]} Rab8 {[%emt 0:01:13]} 31. Bd1 $1 {[%emt 0:00:05]} Nb6 {[%emt 0:01:15]} 32. Ra2 {[%emt 0:00:56]} Nc8 {[%emt 0:04:04]} 33. Kg1 {[%emt 0:00:20]} Kf7 {[%emt 0:00:45]} 34. Kf2 {[%emt 0:00:54]} Kf6 {[%emt 0:00:48]} 35. Ke3 {[%emt 0:00:51]} g5 {[%emt 0:00:54]} (35... h6 $11) 36. g4 $2 {[%emt 0:01:13]} (36. fxg5+ $1 $14 {keeps the upper hand.} Ke5 (36... Kxg5 37. h4+ Kf6 38. Kf4 $14) 37. g3) 36... Ne7 $2 {[%emt 0:09:42]} (36... Rxb3+ $1 $19 {has better winning chances.} 37. Bxb3 Rxb3+ 38. Kd2 gxf4) 37. Rf2 {[%emt 0:06:17]} gxf4+ {[%emt 0:01:52]} 38. Kxf4 $2 {[%emt 0:03:27]} (38. Rxf4 {was the only chance.} Ke5 39. Rc3) 38... Ng6+ {[%emt 0:01:25]} 39. Ke3 {[%emt 0:00:14]} Rxb3+ {[%emt 0:02:42]} 40. Bxb3 {[%emt 0:00:08]} Rxb3+ {[%emt 0:00:04]} 41. Ke2 $19 {[%emt 0:30:23]} Rb2+ {[%emt 0:30:55]} 42. Kf1 {[%emt 0:02:20]} Rxf2+ {[%emt 0:00:10]} 43. Kxf2 {[%emt 0:00:04]} f4 {[%emt 0:00:30]} 44. h3 {[%emt 0:01:55]} Ke5 {[%emt 0:00:46]} 45. h4 {[%emt 0:03:27]} e3+ {[%emt 0:00:46]} 46. Ke2 {[%emt 0:00:36]} Ke4 {[%emt 0:00:50]} 47. h5 {[%emt 0:02:07]} f3+ {[%emt 0:00:20]} 48. Kf1 {[%emt 0:00:12]} Nf4 0-1

[Event "Czech Youth U14 Boys 2024"]
[Site "Kouty nad Desnou"]
[Date "2024.03.12"]
[Round "5.6"]
[White "Sotek, Simon"]
[Black "Kutil, Adam"]
[Result "1/2-1/2"]
[ECO "B41"]
[WhiteElo "1793"]
[BlackElo "1820"]
[Annotator "NA RC"]
[PlyCount "96"]
[EventDate "2024.03.10"]
[EventType "swiss"]
[EventCountry "CZE"]
[SourceTitle "playchess.com"]
[Source "ChessBase"]
[SourceQuality "1"]
[TimeControl "40/5400+30:1800+30"]

1. e4 {[%emt 0:00:07]} c5 {[%emt 0:00:26]} 2. Nf3 {[%emt 0:00:20]} e6 {[%emt 0:00:06]} 3. d4 {[%emt 0:00:10]} cxd4 {[%emt 0:00:19]} 4. Nxd4 {[%emt 0:00:04]} a6 {[%emt 0:00:17]} 5. g3 {[%emt 0:01:47]} Qc7 {[%emt 0:01:16]} 6. Bg2 {[%emt 0:00:26] B41: Sicilian: Kan Variation: 5 c4.} Nc6 {[%emt 0:02:21]} 7. Nxc6 {[%emt 0:07:09]} dxc6 {[%emt 0:01:14]} 8. Be3 {[%emt 0:01:37]} Nf6 {[%emt 0:04:03]} 9. O-O {[%emt 0:00:36]} e5 {[%emt 0:00:33]} 10. c3 {[%emt 0:04:07]} Ng4 {[%emt 0:06:54]} 11. Qe2 {[%emt 0:03:45]} Nxe3 {[%emt 0:02:19]} 12. Qxe3 {[%emt 0:00:43]} Be6 {[%emt 0:04:08]} 13. Nd2 {[%emt 0:04:09]} Be7 {[%emt 0:02:10]} 14. Nb3 {[%emt 0:04:15]} c5 {[%emt 0:05:46]} 15. Rac1 {[%emt 0:12:43]} b5 {[%emt 0:05:33]} 16. Nd2 {[%emt 0:02:08]} c4 {[%emt 0:17:05]} 17. Kh1 {[%emt 0:03:24]} O-O {[%emt 0:03:29]} 18. f4 {[%emt 0:07:10]} Bc5 {[%emt 0:02:51]} 19. Qe2 {[%emt 0:01:27]} f6 {[%emt 0:01:47]} 20. fxe5 {[%emt 0:01:18]} fxe5 {[%emt 0:00:25]} 21. b3 {[%emt 0:05:27]} Ba7 {[%emt 0:09:20]} 22. bxc4 {[%emt 0:00:31]} bxc4 {[%emt 0:00:05]} 23. Rxf8+ {[%emt 0:04:26]} Rxf8 {[%emt 0:00:13]} 24. Rf1 {[%emt 0:00:56]} Rxf1+ {[%emt 0:04:00]} 25. Bxf1 {[%emt 0:06:08] [#]} Qc5 $2 {[%emt 0:00:43]} ({Besser ist} 25... Qb6 $1 $19 {[%csl Ga7][%cal Rb6g1]} 26. Nf3 g5) 26. Nf3 {[%emt 0:00:16]} Kh8 {[%emt 0:04:10]} 27. Qd1 {[%emt 0:01:31]} (27. h4 $11 {remains equal.}) 27... h6 {[%emt 0:04:56]} 28. Qe2 {[%emt 0:15:23]} Bg4 {[%emt 0:01:51]} 29. Kg2 {[%emt 0:00:43]} Be6 {[%emt 0:05:50]} 30. Qd2 {[%emt 0:01:19]} Bb6 {[%emt 0:00:59]} 31. Qe2 {[%emt 0:00:56]} a5 {[%emt 0:02:40]} 32. Qd2 {[%emt 0:00:58]} a4 {[%emt 0:00:31]} 33. Qe2 {[%emt 0:00:21]} Ba5 {[%emt 0:04:57]} 34. Qd2 {[%emt 0:01:00]} Kh7 {[%emt 0:00:52]} 35. Qe2 {[%emt 0:00:58]} Kg8 {[%emt 0:01:34]} 36. Qd2 {[%emt 0:00:13]} Kf8 {[%emt 0:01:03]} 37. Qb2 {[%emt 0:00:26]} Bb6 {[%emt 0:00:44]} 38. Qe2 {[%emt 0:01:40]} Ke7 {[%emt 0:00:44]} 39. Qd2 {[%emt 0:05:06]} Qb5 {[%emt 0:00:42]} 40. Qe2 {[%emt 0:02:33]} Qc5 {[%emt 0:00:56]} 41. Qd2 $19 {[%emt 0:30:19]} a3 {[%emt 0:10:02]} 42. Qe2 {[%emt 0:00:00]} Ba5 {[%emt 0:01:29]} 43. Qd2 {[%emt 0:00:00]} Qb5 {[%emt 0:04:13]} 44. Qe3 {[%emt 0:00:00]} Qb2+ {[%emt 0:05:01]} 45. Kh1 {[%emt 0:00:00]} Qxc3 {[%emt 0:02:26]} 46. Qc5+ {[%emt 0:00:00]} Kf6 {[%emt 0:05:30]} 47. Qf8+ {[%emt 0:00:00]} Bf7 {[%emt 0:01:48]} 48. Qd6+ {[%emt 0:00:00]} Be6 1/2-1/2

[Event "Czech Youth U14 Boys 2024"]
[Site "Kouty nad Desnou"]
[Date "2024.03.12"]
[Round "5.7"]
[White "Komarek, Tobias"]
[Black "Macosek, Alex"]
[Result "1-0"]
[ECO "A41"]
[WhiteElo "1822"]
[BlackElo "1781"]
[Annotator "NA RC"]
[PlyCount "105"]
[EventDate "2024.03.10"]
[EventType "swiss"]
[EventCountry "CZE"]
[SourceTitle "playchess.com"]
[Source "ChessBase"]
[SourceQuality "1"]
[TimeControl "40/5400+30:1800+30"]

1. d4 {[%emt 0:00:06]} d6 {[%emt 0:01:32]} 2. c4 {[%emt 0:00:24]} e5 {[%emt 0:00:10]} 3. dxe5 {[%emt 0:01:56]} dxe5 {[%emt 0:00:56]} 4. Qxd8+ {[%emt 0:00:20]} Kxd8 {[%emt 0:00:21]} 5. Nc3 {[%emt 0:01:51]} c6 {[%emt 0:01:44]} 6. Be3 {[%emt 0:06:47] A41: 1 d4 d6: Tartakower System and Modern Defence.} Be6 {[%emt 0:03:49]} 7. O-O-O+ {[%emt 0:09:46]} Kc7 {[%emt 0:01:02]} 8. b3 {[%emt 0:09:21]} (8. g3 $1 $15) 8... Ba3+ {[%emt 0:08:22]} 9. Kb1 {[%emt 0:00:08]} Na6 {[%emt 0:06:04]} 10. Bc1 {[%emt 0:02:58]} Bc5 {[%emt 0:01:32]} 11. e3 {[%emt 0:03:53]} f6 {[%emt 0:06:29]} 12. Bb2 {[%emt 0:01:21]} Nh6 {[%emt 0:00:43]} 13. h3 {[%emt 0:05:38]} Rhd8 {[%emt 0:01:03]} 14. Bd3 {[%emt 0:05:49]} Bf5 {[%emt 0:09:23]} 15. Bxf5 {[%emt 0:00:54]} Nxf5 {[%emt 0:00:11]} 16. a3 {[%emt 0:03:52]} Be7 {[%emt 0:02:32]} 17. b4 {[%emt 0:01:19]} Nd6 {[%emt 0:05:47]} 18. c5 {[%emt 0:02:27]} Nc4 {[%emt 0:01:16]} 19. Nge2 {[%emt 0:01:16]} Rxd1+ {[%emt 0:03:58]} 20. Rxd1 {[%emt 0:00:12]} Rd8 {[%emt 0:01:22]} 21. Rxd8 {[%emt 0:01:44]} Kxd8 {[%emt 0:00:07]} 22. Ng3 {[%emt 0:00:56]} Kd7 {[%emt 0:01:48]} 23. Kc2 {[%emt 0:01:55]} Nxb2 {[%emt 0:01:09]} 24. Kxb2 {[%emt 0:00:06]} Ke6 {[%emt 0:00:12]} 25. Nge4 {[%emt 0:01:35]} f5 {[%emt 0:01:01]} 26. Nd2 {[%emt 0:00:31]} e4 {[%emt 0:04:24]} 27. Nb3 {[%emt 0:01:47]} Kd7 {[%emt 0:01:55]} 28. Nd4 {[%emt 0:06:53]} g6 {[%emt 0:00:35]} 29. g4 {[%emt 0:00:12]} Bf6 {[%emt 0:00:33]} 30. gxf5 {[%emt 0:06:35]} Bxd4 {[%emt 0:00:13]} 31. exd4 {[%emt 0:00:03]} gxf5 {[%emt 0:00:13]} 32. Kc2 {[%emt 0:01:26]} Nc7 {[%emt 0:03:39]} 33. Kd2 {[%emt 0:00:48]} Ke6 {[%emt 0:00:45]} 34. Ke3 {[%emt 0:04:56]} h6 {[%emt 0:07:33]} 35. Kf4 {[%emt 0:11:24]} Kf6 $11 {[%emt 0:01:16]} 36. Ke3 {[%emt 0:03:45]} Kg5 {[%emt 0:05:59]} 37. f3 {[%emt 0:02:10]} Nd5+ {[%emt 0:02:40]} 38. Nxd5 {[%emt 0:00:03]} cxd5 {[%emt 0:00:05]} 39. b5 {[%emt 0:00:12]} Kf6 {[%emt 0:00:16]} 40. a4 {[%emt 0:00:28]} Ke7 {[%emt 0:00:59]} 41. a5 {[%emt 0:30:26]} a6 {[%emt 0:32:07]} 42. c6 {[%emt 0:01:59]} Kd8 {[%emt 0:00:42]} 43. cxb7 {[%emt 0:00:30]} Kc7 {[%emt 0:00:20]} 44. bxa6 {[%emt 0:01:00]} Kb8 {[%emt 0:00:20]} 45. fxe4 {[%emt 0:00:06]} fxe4 {[%emt 0:00:21]} 46. h4 {[%emt 0:00:10]} Ka7 {[%emt 0:00:17]} 47. Ke2 {[%emt 0:00:21]} Kb8 {[%emt 0:00:09]} 48. h5 {[%emt 0:00:10]} Ka7 {[%emt 0:00:18]} 49. Ke3 {[%emt 0:00:12]} Kb8 {[%emt 0:00:13]} 50. Kf4 {[%emt 0:00:25]} Ka7 {[%emt 0:00:13]} 51. Ke5 {[%emt 0:02:08]} e3 {[%emt 0:00:21]} 52. Kd6 {[%emt 0:00:02]} Kb8 {[%emt 0:02:03]} 53. Kc6 {[%emt 0:00:13]} 1-0

[Event "Czech Youth U14 Boys 2024"]
[Site "Kouty nad Desnou"]
[Date "2024.03.12"]
[Round "5.8"]
[White "Pogorelskiy, Boris"]
[Black "Srba, Daniel"]
[Result "1-0"]
[ECO "D35"]
[WhiteElo "1747"]
[BlackElo "1742"]
[Annotator "NA RC"]
[PlyCount "67"]
[EventDate "2024.03.10"]
[EventType "swiss"]
[EventCountry "CZE"]
[SourceTitle "playchess.com"]
[Source "ChessBase"]
[SourceQuality "1"]
[TimeControl "40/5400+30:1800+30"]

1. d4 {[%emt 0:00:02]} d5 {[%emt 0:00:07]} 2. c4 {[%emt 0:00:03]} e6 {[%emt 0:00:06]} 3. Nc3 {[%emt 0:00:03]} Nf6 {[%emt 0:00:24]} 4. cxd5 {[%emt 0:00:06]} exd5 {[%emt 0:01:05]} 5. Bg5 {[%emt 0:00:05]} Be7 {[%emt 0:00:22]} 6. e3 {[%emt 0:00:05]} O-O {[%emt 0:02:21]} 7. Bd3 {[%emt 0:00:03]} Nbd7 {[%emt 0:04:04]} 8. Nf3 {[%emt 0:00:49]} b6 {[%emt 0:00:21]} 9. O-O {[%emt 0:00:51]} Bb7 {[%emt 0:00:34]} 10. h3 {[%emt 0:01:47]} c5 {[%emt 0:02:35]} 11. Bf4 {[%emt 0:00:44]} a6 {[%emt 0:04:35]} 12. a4 {[%emt 0:08:34]} Ne4 {[%emt 0:05:19]} 13. Bc2 {[%emt 0:09:41]} Ndf6 {[%emt 0:04:29]} 14. Ne5 {[%emt 0:03:18]} Nxc3 {[%emt 0:13:06]} 15. bxc3 {[%emt 0:00:16]} Ne4 {[%emt 0:01:28]} 16. Bxe4 {[%emt 0:02:55]} dxe4 {[%emt 0:02:38]} 17. Rb1 {[%emt 0:00:09]} cxd4 {[%emt 0:03:40]} 18. cxd4 {[%emt 0:01:41]} b5 {[%emt 0:00:56]} 19. axb5 {[%emt 0:03:26]} axb5 {[%emt 0:00:05]} 20. Rxb5 {[%emt 0:00:12]} Ba6 {[%emt 0:01:03]} 21. Nc6 {[%emt 0:00:05]} Qd7 {[%emt 0:02:37]} 22. Nxe7+ {[%emt 0:00:04]} Qxe7 {[%emt 0:00:50]} 23. Re5 {[%emt 0:00:02]} Qa3 {[%emt 0:01:50]} 24. Re1 {[%emt 0:00:15]} Bd3 {[%emt 0:00:05]} 25. Rc5 {[%emt 0:01:11]} Ra7 {[%emt 0:02:16]} 26. Qg4 {[%emt 0:01:13]} g6 {[%emt 0:02:56]} 27. Bh6 {[%emt 0:03:01]} f5 {[%emt 0:02:51]} 28. Qg3 {[%emt 0:00:53]} Qb4 {[%emt 0:05:21]} 29. Rec1 {[%emt 0:00:36]} Re8 {[%emt 0:01:49]} 30. Rxf5 {[%emt 0:01:41]} Qe7 {[%emt 0:01:17]} 31. Re5 {[%emt 0:02:27]} Qf7 {[%emt 0:03:50]} 32. Rxe8+ {[%emt 0:00:29]} Qxe8 {[%emt 0:00:05]} 33. Rc7 {[%emt 0:00:08]} Ra1+ {[%emt 0:01:52]} 34. Kh2 {[%emt 0:00:06]} 1-0

[Event "Czech Youth U14 Boys 2024"]
[Site "Kouty nad Desnou"]
[Date "2024.03.12"]
[Round "5.9"]
[White "Stara, Zuzana"]
[Black "Svadlenka, Dominik"]
[Result "1-0"]
[ECO "B12"]
[WhiteElo "1807"]
[BlackElo "1888"]
[Annotator "NA RC"]
[PlyCount "103"]
[EventDate "2024.03.10"]
[EventType "swiss"]
[EventCountry "CZE"]
[SourceTitle "playchess.com"]
[Source "ChessBase"]
[SourceQuality "1"]
[TimeControl "40/5400+30:1800+30"]

{[%evp 11,93,0,32767,32767,32767,32767,32767,32767,32767,32767,32767,32767,12,23,79,104,185,4,32767,32767,32767,32767,8,32767,43,25,22,-45,32767,0,19,10,32767,10,27,27,36,26,32767,16,22,0,7,32767,32767,12,24,26,27,28,32767,17,175,32767,225,276,394,428,32767,32767,32767,337,32767,453,505,405,569,32767,695,32767,32767,828,760,32767,1512,32767,1339,2107,32767,2225,1905,10984,32767,29975]} 1. e4 {[%emt 0:00:01]} c6 {[%emt 0:00:05]} 2. d4 {[%emt 0:00:03]} d5 {[%emt 0:00:04]} 3. e5 {[%emt 0:00:02]} c5 {[%emt 0:00:05]} 4. dxc5 {[%emt 0:00:09]} e6 {[%emt 0:00:05]} 5. a3 {[%emt 0:00:12]} Bxc5 {[%emt 0:00:06]} 6. Nf3 {[%emt 0:00:19] B12: Caro-Kann: Advance Variation.} Nd7 {[%emt 0:03:18]} 7. b4 {[%emt 0:00:53]} Be7 {[%emt 0:00:11]} 8. Bb2 {[%emt 0:00:43]} a5 {[%emt 0:00:24]} 9. b5 {[%emt 0:04:41]} Nc5 {[%emt 0:03:36] 9...f6 is the modern continuation.} 10. Nc3 $146 {[%emt 0:02:01]} ({Predecessor:} 10. a4 b6 11. Bd3 Bb7 12. O-O Nh6 13. Nbd2 Rc8 14. Nb3 Nxd3 15. cxd3 Nf5 16. d4 {1-0 Gatterer,F (2167)-Mouhamad,J (2264) Titled Tuesday intern op 02nd Aug Early blitz 2022 (6)}) 10... Qc7 {[%emt 0:02:24]} 11. Ne2 {[%emt 0:09:16]} f6 {[%emt 0:12:18]} (11... a4 $15) 12. Nf4 {[%emt 0:04:13]} Na4 {[%emt 0:20:19]} (12... Nh6 $11) 13. Bd4 {[%emt 0:04:33]} Bc5 {[%emt 0:04:11] [#]} (13... Nh6 $16 {is a better defense.}) 14. Be2 $2 {[%emt 0:21:12]} (14. b6 $1 $18 {[%cal Rb6c7]} Nxb6 (14... Qxb6 $2 {ist das falsche Schlagen.} 15. Rb1 $18) 15. Bb5+ Ke7 16. O-O) 14... Bxd4 {[%emt 0:20:21]} 15. Qxd4 {[%emt 0:00:09]} Qc3+ {[%emt 0:01:14]} 16. Qxc3 {[%emt 0:01:21]} Nxc3 {[%emt 0:00:04]} 17. a4 {[%emt 0:03:57]} Nxe2 {[%emt 0:00:52]} (17... Bd7 $5) 18. Nxe2 {[%emt 0:00:54]} Ne7 {[%emt 0:01:44]} 19. Nc1 {[%emt 0:02:11]} (19. c4 $11) 19... b6 {[%emt 0:01:54]} 20. Nd3 {[%emt 0:00:41]} Bb7 {[%emt 0:02:36]} 21. Nd4 {[%emt 0:02:22]} Kf7 {[%emt 0:01:14]} 22. Kd2 {[%emt 0:00:37]} Rhe8 {[%emt 0:02:39]} 23. Rhe1 {[%emt 0:02:04]} Nf5 {[%emt 0:02:23]} 24. Nxf5 {[%emt 0:09:21]} exf5 {[%emt 0:00:30]} 25. c3 {[%emt 0:00:27]} d4 {[%emt 0:04:47]} 26. cxd4 {[%emt 0:01:56]} (26. c4 $14 Bxg2 27. e6+ Ke7 (27... Rxe6 $2 {is the wrong capture.} 28. Rxe6 Kxe6 29. Nf4+ Kd6 30. Nxg2 $18) 28. c5 bxc5 29. Rg1 (29. Nxc5 Rec8 $11)) 26... Rad8 {[%emt 0:00:21]} 27. exf6 {[%emt 0:09:01]} Rxe1 {[%emt 0:01:42]} 28. Rxe1 {[%emt 0:00:19]} Kxf6 {[%emt 0:00:17]} 29. Ke3 {[%emt 0:02:40]} Bxg2 {[%emt 0:01:11]} ({Much weaker is} 29... f4+ $6 30. Nxf4 (30. Kxf4 Rxd4+ 31. Ke3 Rxa4 $17) 30... Re8+ 31. Kd2 Rxe1 32. Kxe1 $16) 30. Ne5 {[%emt 0:01:31]} Bd5 {[%emt 0:02:40]} 31. Rc1 {[%emt 0:00:47]} h5 $2 {[%emt 0:05:46]} ({Viel schwächer wäre} 31... g5 $6 32. Rc7 Ke6 33. Rxh7 $16) (31... Re8 $11 {und Schwarz steht sicher.}) 32. Rc7 {[%emt 0:02:29]} h4 {[%emt 0:01:12]} 33. Nd7+ {[%emt 0:02:21]} Kg5 {[%emt 0:01:34]} (33... Ke6 $142 34. Nxb6 Re8) 34. Nxb6 {[%emt 0:01:34]} Re8+ {[%emt 0:01:17]} 35. Kd2 {[%emt 0:00:36]} Bf3 {[%emt 0:00:32]} 36. Rxg7+ {[%emt 0:02:33]} Kf4 {[%emt 0:00:14]} 37. Kd3 {[%emt 0:02:36]} Re6 {[%emt 0:01:09]} 38. Nc4 {[%emt 0:03:59]} Be4+ {[%emt 0:01:46]} 39. Kc3 {[%emt 0:01:42]} Kf3 {[%emt 0:00:46]} 40. b6 {[%emt 0:01:47]} Kxf2 {[%emt 0:00:46]} 41. b7 {[%emt 0:02:46]} ({Weaker is} 41. Nxa5 Rxb6 42. Nb3 Bg2 $11) 41... Re8 {[%emt 0:01:40]} 42. Nd6 {[%emt 0:02:11]} Rb8 {[%emt 0:00:29]} 43. Nxe4+ {[%emt 0:02:51]} fxe4 {[%emt 0:00:07]} 44. Re7 {[%emt 0:00:21]} e3 {[%emt 0:01:03]} 45. Kd3 {[%emt 0:01:01]} h3 {[%emt 0:01:18]} 46. d5 {[%emt 0:14:34]} ({Weaker is} 46. Rxe3 Rxb7 47. Re2+ (47. Rxh3 Rb3+ 48. Kc4 Rxh3 $19) 47... Kf3 $18) 46... Kg2 {[%emt 0:07:58]} 47. d6 {[%emt 0:01:10]} Rd8 {[%emt 0:09:49]} 48. Kxe3 {[%emt 0:01:09]} Kxh2 {[%emt 0:00:11]} 49. Rg7 {[%emt 0:01:34]} Kh1 {[%emt 0:00:30]} 50. Ke4 {[%emt 0:01:18]} h2 {[%emt 0:00:16]} 51. Rh7 {[%emt 0:02:38]} Kg2 {[%emt 0:02:52]} 52. Kd5 {[%emt 0:01:02]} 1-0

[Event "Czech Youth U14 Boys 2024"]
[Site "Kouty nad Desnou"]
[Date "2024.03.12"]
[Round "5.10"]
[White "Migalko, Dmitriy"]
[Black "Jezek, Jakub"]
[Result "1-0"]
[ECO "B50"]
[WhiteElo "1896"]
[BlackElo "1854"]
[Annotator "NA RC"]
[PlyCount "71"]
[EventDate "2024.03.10"]
[EventType "swiss"]
[EventCountry "CZE"]
[SourceTitle "playchess.com"]
[Source "ChessBase"]
[SourceQuality "1"]
[TimeControl "40/5400+30:1800+30"]

1. e4 {[%emt 0:00:02]} c5 {[%emt 0:00:10]} 2. Nf3 {[%emt 0:00:13]} d6 {[%emt 0:00:03]} 3. Nc3 {[%emt 0:00:13]} e5 {[%emt 0:00:05]} 4. g3 {[%emt 0:02:34]} Nf6 {[%emt 0:00:34]} 5. Bg2 {[%emt 0:00:58]} Be7 {[%emt 0:00:34]} 6. O-O {[%emt 0:01:07] B50: Sicilian: 2...d6, Miscellaneous.} Nc6 {[%emt 0:02:15]} 7. d3 {[%emt 0:02:18]} Rb8 {[%emt 0:01:34]} 8. Bg5 {[%emt 0:06:07]} Be6 {[%emt 0:04:20]} 9. Ne1 {[%emt 0:10:10]} Nd4 {[%emt 0:00:41]} 10. f4 {[%emt 0:02:41]} b5 {[%emt 0:15:23]} (10... exf4 $11 11. gxf4 h6 12. Bxf6 Bxf6) 11. fxe5 {[%emt 0:09:06]} (11. f5 $14 Bd7 12. Bxf6 Bxf6 13. Nd5) 11... dxe5 {[%emt 0:00:24]} 12. Bxf6 {[%emt 0:00:36]} Bxf6 {[%emt 0:00:52]} 13. Nd5 {[%emt 0:00:29]} Be7 {[%emt 0:04:42]} 14. c3 {[%emt 0:07:30]} Nc6 {[%emt 0:00:30]} 15. Nc2 {[%emt 0:01:06]} b4 {[%emt 0:00:59]} (15... O-O $11) 16. Nce3 {[%emt 0:04:31]} O-O {[%emt 0:03:08]} 17. Nc4 {[%emt 0:10:51]} f5 {[%emt 0:03:52]} (17... Qd7 $11 {remains equal.}) 18. Nxe7+ {[%emt 0:05:22]} Qxe7 {[%emt 0:03:35]} 19. exf5 {[%emt 0:01:03]} Bxc4 {[%emt 0:00:03]} 20. dxc4 {[%emt 0:03:23]} ({Resist} 20. Bxc6 $6 Rbd8 $14) 20... Na5 {[%emt 0:04:44]} (20... Rbd8 {was worth a try.} 21. Qf3 Rf6) 21. cxb4 {[%emt 0:01:39]} Rxb4 {[%emt 0:01:23]} 22. Qd5+ {[%emt 0:01:02]} Kh8 {[%emt 0:00:32]} 23. b3 {[%emt 0:00:56]} Rb6 {[%emt 0:04:24]} 24. Qd2 {[%emt 0:04:36]} Nc6 {[%emt 0:00:59]} 25. Bxc6 {[%emt 0:00:37]} Rxc6 {[%emt 0:01:49]} 26. Rad1 {[%emt 0:02:45]} h6 {[%emt 0:04:59]} 27. Qd7 {[%emt 0:02:13]} Rc7 $18 {[%emt 0:04:53]} 28. Qxe7 {[%emt 0:01:29]} Rxe7 {[%emt 0:00:02]} 29. Rd5 {[%emt 0:00:59]} Rc8 {[%emt 0:02:06]} 30. f6 {[%emt 0:01:01]} gxf6 {[%emt 0:00:04]} 31. Rxf6 {[%emt 0:00:08]} Kg7 {[%emt 0:00:42]} 32. Rf5 {[%emt 0:00:47]} e4 {[%emt 0:02:04]} 33. Rxc5 Rd8 {[%emt 0:00:59]} 34. Rcd5 {[%emt 0:02:03]} Rde8 {[%emt 0:00:16]} 35. Kf2 {[%emt 0:00:30]} Kg6 {[%emt 0:00:35]} 36. Ke3 {[%emt 0:00:35]} 1-0

[Event "Czech Youth U14 Boys 2024"]
[Site "Kouty nad Desnou"]
[Date "2024.03.12"]
[Round "5.11"]
[White "Gregor, Alexandr"]
[Black "Trcalek, Filip"]
[Result "1-0"]
[ECO "C50"]
[WhiteElo "1777"]
[BlackElo "1615"]
[Annotator "NA RC"]
[PlyCount "73"]
[EventDate "2024.03.10"]
[EventType "swiss"]
[EventCountry "CZE"]
[SourceTitle "playchess.com"]
[Source "ChessBase"]
[SourceQuality "1"]
[TimeControl "40/5400+30:1800+30"]

1. e4 {[%emt 0:00:03]} e5 {[%emt 0:00:07]} 2. Nf3 {[%emt 0:00:05]} Nc6 {[%emt 0:00:10]} 3. Bc4 {[%emt 0:00:07]} Bc5 {[%emt 0:00:24]} 4. O-O {[%emt 0:00:10]} Nf6 {[%emt 0:00:23]} 5. d4 {[%emt 0:00:09]} Bxd4 {[%emt 0:03:05]} 6. Nxd4 {[%emt 0:00:09]} Nxd4 {[%emt 0:00:09]} 7. Bg5 {[%emt 0:00:31]} d6 {[%emt 0:02:48]} 8. f4 {[%emt 0:00:57]} h6 {[%emt 0:10:44]} 9. Bxf6 {[%emt 0:05:57]} gxf6 {[%emt 0:04:00]} 10. fxe5 {[%emt 0:00:47]} dxe5 {[%emt 0:02:10]} 11. Qh5 {[%emt 0:01:54]} Qe7 {[%emt 0:11:41]} 12. Nc3 {[%emt 0:09:13]} c6 {[%emt 0:02:33]} 13. Rf2 {[%emt 0:01:19]} Kf8 {[%emt 0:15:30]} 14. Raf1 {[%emt 0:00:13]} f5 {[%emt 0:01:18]} 15. exf5 {[%emt 0:02:02]} f6 {[%emt 0:01:40]} 16. Ne4 {[%emt 0:04:32]} b5 {[%emt 0:08:58]} 17. Be6 {[%emt 0:02:30]} Qg7 {[%emt 0:07:50]} 18. Bxc8 {[%emt 0:04:50]} Rxc8 {[%emt 0:00:12]} 19. c3 {[%emt 0:00:05]} c5 {[%emt 0:01:20]} 20. cxd4 {[%emt 0:00:06]} cxd4 {[%emt 0:00:07]} 21. Rf3 {[%emt 0:01:03]} Rc6 {[%emt 0:01:59]} 22. Rg3 {[%emt 0:00:15]} Qc7 {[%emt 0:00:12]} 23. Rg6 {[%emt 0:01:35]} Qb6 {[%emt 0:01:30]} 24. Rxh6 {[%emt 0:00:35]} Rxh6 {[%emt 0:00:29]} 25. Qxh6+ {[%emt 0:00:06]} Kf7 {[%emt 0:00:15]} 26. Qg6+ {[%emt 0:00:18]} Ke7 {[%emt 0:00:24]} 27. Qg7+ {[%emt 0:00:20]} Ke8 {[%emt 0:00:22]} 28. h4 {[%emt 0:01:03]} d3+ {[%emt 0:01:01]} 29. Kh2 {[%emt 0:00:13]} d2 {[%emt 0:01:02]} 30. Nxd2 {[%emt 0:01:06]} Qd4 {[%emt 0:00:31]} 31. Qg6+ {[%emt 0:03:59]} Ke7 {[%emt 0:01:00]} 32. Nf3 {[%emt 0:00:23]} Qd3 {[%emt 0:01:06]} 33. Re1 {[%emt 0:00:43]} Rc2 {[%emt 0:02:22]} 34. Rxe5+ {[%emt 0:03:40]} Kd7 {[%emt 0:01:48]} 35. Qxf6 {[%emt 0:01:42]} Kc7 {[%emt 0:01:47]} 36. Re7+ {[%emt 0:00:25]} Kb8 {[%emt 0:00:19]} 37. Qa6 {[%emt 0:04:40]} 1-0